[Event "Live Chess"]
[Site "Chess.com"]
[Date "2023.09.16"]
[Round "-"]
[White "KauaShelby015"]
[Black "Mozart5501"]
[Result "1/2-1/2"]
[WhiteElo "1250"]
[BlackElo "1793"]
[TimeControl "900+5"]
[EndTime "6:24:05 PDT"]
[Termination "Partida empatada por acordo"]

1. e4 {[%clk 0:15:02.6]} 1... e5 {[%clk 0:15:04]} 2. Nf3 {[%clk 0:15:06.2]} 2...
Nc6 {[%clk 0:15:07.6]} 3. d4 {[%clk 0:15:10.2]} 3... exd4 {[%clk 0:15:10.9]} 4.
Bc4 {[%clk 0:15:13.9]} 4... Bb4+ {[%clk 0:15:14.9]} 5. c3 {[%clk 0:15:15.5]}
5... dxc3 {[%clk 0:15:19.4]} 6. bxc3 {[%clk 0:15:19.3]} 6... Ba5 {[%clk
0:15:24]} 7. Qd5 {[%clk 0:15:14.1]} 7... Qf6 {[%clk 0:15:22.7]} 8. O-O {[%clk
0:15:01.2]} 8... Nge7 {[%clk 0:15:25.5]} 9. Qd3 {[%clk 0:14:46]} 9... d6 {[%clk
0:15:25.1]} 10. Bg5 {[%clk 0:14:48.5]} 10... Qg6 {[%clk 0:15:26.2]} 11. Nbd2
{[%clk 0:14:37.1]} 11... O-O {[%clk 0:15:23.9]} 12. Nb3 {[%clk 0:14:35.3]} 12...
Bb6 {[%clk 0:15:27.3]} 13. Rad1 {[%clk 0:14:20.4]} 13... Bg4 {[%clk 0:15:29.1]}
14. Bxe7 {[%clk 0:14:16.8]} 14... Nxe7 {[%clk 0:15:30.3]} 15. h3 {[%clk
0:14:17.4]} 15... Bxh3 {[%clk 0:15:33.4]} 16. Nh4 {[%clk 0:14:15.3]} 16... Qg5
{[%clk 0:15:01.3]} 17. Qxh3 {[%clk 0:14:15.3]} 17... Nc6 {[%clk 0:14:49.1]} 18.
Nf3 {[%clk 0:13:45.1]} 18... Qg6 {[%clk 0:14:42.9]} 19. Bd3 {[%clk 0:13:45.4]}
19... Ne5 {[%clk 0:14:44.5]} 20. Nxe5 {[%clk 0:13:35.2]} 20... dxe5 {[%clk
0:14:48.8]} 21. Kh1 {[%clk 0:12:15.7]} 21... Rad8 {[%clk 0:14:43.5]} 22. Be2
{[%clk 0:11:00.1]} 22... Rxd1 {[%clk 0:14:41.8]} 23. Bxd1 {[%clk 0:11:02.3]}
23... Qxe4 {[%clk 0:14:45]} 24. Qf3 {[%clk 0:10:52]} 24... Qh4+ {[%clk
0:14:36.7]} 25. Qh3 {[%clk 0:10:29.5]} 25... Bxf2 {[%clk 0:14:35.5]} 26. Qxh4
{[%clk 0:10:10.8]} 26... Bxh4 {[%clk 0:14:40.1]} 27. Nc5 {[%clk 0:10:08.9]}
27... b6 {[%clk 0:14:37.6]} 28. Ne4 {[%clk 0:10:11.2]} 28... f5 {[%clk
0:14:37.3]} 29. Nd2 {[%clk 0:09:45]} 29... c5 {[%clk 0:14:31.3]} 1/2-1/2

[Event "Live Chess"]
[Site "Chess.com"]
[Date "2023.09.16"]
[Round "-"]
[White "Abofado"]
[Black "sleepGM86"]
[Result "0-1"]
[WhiteElo "578"]
[BlackElo "1115"]
[TimeControl "900+5"]
[EndTime "6:24:06 PDT"]
[Termination "sleepGM86 venceu por xeque-mate"]

1. e4 {[%clk 0:15:03.2]} 1... c5 {[%clk 0:15:03.6]} 2. Nf3 {[%clk 0:15:06.9]}
2... Nc6 {[%clk 0:15:06.3]} 3. d4 {[%clk 0:15:10.5]} 3... cxd4 {[%clk
0:15:08.5]} 4. Nxd4 {[%clk 0:15:14.2]} 4... g6 {[%clk 0:15:12.2]} 5. Nxc6 {[%clk
0:15:17.6]} 5... bxc6 {[%clk 0:15:16.5]} 6. Bc4 {[%clk 0:15:17.5]} 6... Bg7
{[%clk 0:15:20.3]} 7. Qf3 {[%clk 0:15:19.9]} 7... e6 {[%clk 0:15:22.3]} 8. Nc3
{[%clk 0:15:21]} 8... d5 {[%clk 0:15:26]} 9. exd5 {[%clk 0:15:24.2]} 9... cxd5
{[%clk 0:15:30.9]} 10. Bb5+ {[%clk 0:15:26.6]} 10... Bd7 {[%clk 0:15:33.2]} 11.
O-O {[%clk 0:15:23.8]} 11... Bxb5 {[%clk 0:15:34.4]} 12. Nxb5 {[%clk 0:15:27.3]}
12... Nf6 {[%clk 0:15:36]} 13. Bf4 {[%clk 0:15:30.5]} 13... O-O {[%clk
0:15:32.8]} 14. Rfd1 {[%clk 0:15:14.6]} 14... Nh5 {[%clk 0:15:22.1]} 15. Bc7
{[%clk 0:15:13.9]} 15... Qd7 {[%clk 0:15:15]} 16. Bg3 {[%clk 0:14:43.6]} 16...
Nxg3 {[%clk 0:15:14.9]} 17. hxg3 {[%clk 0:14:48]} 17... Qxb5 {[%clk 0:15:12.3]}
18. g4 {[%clk 0:14:47.6]} 18... Qe8 {[%clk 0:15:04.2]} 19. Qh3 {[%clk
0:14:49.4]} 19... Bxb2 {[%clk 0:15:06.4]} 20. Rab1 {[%clk 0:14:51.9]} 20... Bg7
{[%clk 0:15:09.8]} 21. f3 {[%clk 0:14:55.2]} 21... Rb8 {[%clk 0:15:08.3]} 22.
Kf2 {[%clk 0:14:57.1]} 22... Rxb1 {[%clk 0:15:10.4]} 23. Rxb1 {[%clk 0:14:58.7]}
23... Bd4+ {[%clk 0:15:03.6]} 24. Ke2 {[%clk 0:15:01.9]} 24... Bg7 {[%clk
0:15:00]} 25. Rh1 {[%clk 0:15:05.4]} 25... h6 {[%clk 0:15:00.7]} 26. g5 {[%clk
0:15:07.3]} 26... h5 {[%clk 0:15:04.8]} 27. g4 {[%clk 0:15:09.3]} 27... Qb5+
{[%clk 0:15:03]} 28. Kd2 {[%clk 0:15:09.9]} 28... Qb4+ {[%clk 0:15:04.4]} 29. c3
{[%clk 0:15:13.1]} 29... Qb2+ {[%clk 0:15:07.5]} 30. Kd3 {[%clk 0:15:15.9]}
30... Qxc3+ {[%clk 0:15:03.1]} 31. Ke2 {[%clk 0:15:18.7]} 31... Qe5+ {[%clk
0:14:49.8]} 32. Kd3 {[%clk 0:15:18.3]} 32... Qxg5 {[%clk 0:14:52.6]} 33. a4
{[%clk 0:15:09.1]} 33... Rb8 {[%clk 0:14:52.5]} 34. Rc1 {[%clk 0:14:39.5]} 34...
Qxc1 {[%clk 0:14:38.2]} 35. gxh5 {[%clk 0:14:41.1]} 35... Rb3+ {[%clk
0:14:40.9]} 36. Ke2 {[%clk 0:14:43.5]} 36... Qe3+ {[%clk 0:14:41.9]} 37. Kd1
{[%clk 0:14:45.3]} 37... Rb2 {[%clk 0:14:37.8]} 38. hxg6 {[%clk 0:13:50.7]}
38... Qd2# {[%clk 0:14:39.9]} 0-1

[Event "Live Chess"]
[Site "Chess.com"]
[Date "2023.09.16"]
[Round "-"]
[White "ArthurMPRJ"]
[Black "vitinho_lawliet"]
[Result "1-0"]
[WhiteElo "1249"]
[BlackElo "948"]
[TimeControl "900+5"]
[EndTime "6:25:10 PDT"]
[Termination "ArthurMPRJ venceu por xeque-mate"]

1. d4 {[%clk 0:15:03.3]} 1... d5 {[%clk 0:15:00.2]} 2. c4 {[%clk 0:15:07.7]}
2... e6 {[%clk 0:14:59.1]} 3. Nc3 {[%clk 0:15:11.4]} 3... Nf6 {[%clk 0:14:56.6]}
4. cxd5 {[%clk 0:15:14.9]} 4... exd5 {[%clk 0:14:59.6]} 5. Bg5 {[%clk
0:15:18.6]} 5... Be7 {[%clk 0:14:57.7]} 6. e3 {[%clk 0:15:20.2]} 6... Bf5 {[%clk
0:14:44.8]} 7. Bxf6 {[%clk 0:15:22]} 7... Bxf6 {[%clk 0:14:47.5]} 8. Qb3 {[%clk
0:15:26]} 8... Be6 {[%clk 0:14:46.8]} 9. Qxb7 {[%clk 0:15:28.7]} 9... Nd7 {[%clk
0:14:45.9]} 10. Bb5 {[%clk 0:15:25]} 10... Rb8 {[%clk 0:14:45.9]} 11. Bxd7+
{[%clk 0:15:26.8]} 11... Bxd7 {[%clk 0:14:50.1]} 12. Qxd5 {[%clk 0:15:20.2]}
12... O-O {[%clk 0:14:47.3]} 13. Nf3 {[%clk 0:14:38.3]} 13... c6 {[%clk
0:14:34.5]} 14. Qc4 {[%clk 0:14:19.8]} 14... Be6 {[%clk 0:14:35.4]} 15. Qe2
{[%clk 0:14:22.7]} 15... Qa5 {[%clk 0:14:34.1]} 16. O-O {[%clk 0:14:20.8]} 16...
c5 {[%clk 0:14:23]} 17. Ne4 {[%clk 0:14:14.1]} 17... cxd4 {[%clk 0:13:47.8]} 18.
Nxf6+ {[%clk 0:14:15.3]} 18... gxf6 {[%clk 0:13:50.5]} 19. Nxd4 {[%clk
0:14:18.6]} 19... Bd5 {[%clk 0:13:51]} 20. Nf5 {[%clk 0:13:50.9]} 20... Be6
{[%clk 0:13:22]} 21. Qg4+ {[%clk 0:13:49.2]} 21... Kh8 {[%clk 0:13:21]} 22. Qg7#
{[%clk 0:13:52.7]} 1-0

[Event "Live Chess"]
[Site "Chess.com"]
[Date "2023.09.16"]
[Round "-"]
[White "Arthur1611br"]
[Black "Francisco_Ferrari"]
[Result "0-1"]
[WhiteElo "1009"]
[BlackElo "2169"]
[TimeControl "900+5"]
[EndTime "6:25:15 PDT"]
[Termination "Francisco_Ferrari venceu por desistência"]

1. e3 {[%clk 0:15:03.4]} 1... e5 {[%clk 0:15:02.1]} 2. Bc4 {[%clk 0:15:04.9]}
2... d5 {[%clk 0:15:02.7]} 3. Bb3 {[%clk 0:15:06.6]} 3... Nf6 {[%clk 0:15:06.3]}
4. Nc3 {[%clk 0:15:05.8]} 4... c6 {[%clk 0:14:56.6]} 5. e4 {[%clk 0:15:07.9]}
5... d4 {[%clk 0:14:58.8]} 6. Nce2 {[%clk 0:14:55.2]} 6... Bd6 {[%clk 0:15:02]}
7. f3 {[%clk 0:14:56]} 7... O-O {[%clk 0:15:04.9]} 8. Ng3 {[%clk 0:14:57]} 8...
b5 {[%clk 0:15:04.6]} 9. N1e2 {[%clk 0:14:57.6]} 9... c5 {[%clk 0:15:05.6]} 10.
c4 {[%clk 0:14:52]} 10... bxc4 {[%clk 0:14:56.5]} 11. Bxc4 {[%clk 0:14:51.6]}
11... Nc6 {[%clk 0:14:59]} 12. O-O {[%clk 0:14:40.6]} 12... Na5 {[%clk
0:14:57.7]} 13. b3 {[%clk 0:14:39]} 13... Nxc4 {[%clk 0:15:00.5]} 14. bxc4
{[%clk 0:14:42.8]} 14... Ba6 {[%clk 0:15:03.1]} 15. Qc2 {[%clk 0:14:43]} 15...
g6 {[%clk 0:15:01.9]} 16. Rb1 {[%clk 0:14:31.5]} 16... Rb8 {[%clk 0:15:00.7]}
17. Rxb8 {[%clk 0:14:16]} 17... Qxb8 {[%clk 0:15:05.6]} 18. Qa4 {[%clk
0:14:12.2]} 18... Qb6 {[%clk 0:14:52.2]} 19. Ba3 {[%clk 0:13:59.6]} 19... Rb8
{[%clk 0:14:53.3]} 20. Qd1 {[%clk 0:13:30.5]} 20... Bxc4 {[%clk 0:14:56]} 21. d3
{[%clk 0:13:28.1]} 21... Bxa2 {[%clk 0:14:59.9]} 22. Qc2 {[%clk 0:13:28.5]}
22... Bb3 {[%clk 0:15:02.3]} 23. Rb1 {[%clk 0:13:26.9]} 23... Bxc2 {[%clk
0:15:05.4]} 24. Rxb6 {[%clk 0:13:30.9]} 24... Rxb6 {[%clk 0:15:10.3]} 25. Bc1
{[%clk 0:13:16.7]} 25... Bxd3 {[%clk 0:15:12.8]} 26. Ba3 {[%clk 0:12:59.3]}
26... c4 {[%clk 0:15:14.7]} 27. f4 {[%clk 0:12:59.8]} 27... Rb1+ {[%clk
0:15:15.3]} 28. Bc1 {[%clk 0:13:02.2]} 28... exf4 {[%clk 0:15:16.7]} 29. e5
{[%clk 0:12:53.1]} 29... Bxe5 {[%clk 0:15:19.1]} 0-1

[Event "Live Chess"]
[Site "Chess.com"]
[Date "2023.09.16"]
[Round "-"]
[White "InfinityDelas"]
[Black "IanFLS"]
[Result "0-1"]
[WhiteElo "753"]
[BlackElo "1858"]
[TimeControl "900+5"]
[EndTime "6:25:16 PDT"]
[Termination "IanFLS venceu por desistência"]

1. e4 {[%clk 0:14:58.3]} 1... c6 {[%clk 0:15:03.5]} 2. Nc3 {[%clk 0:15:00.9]}
2... d5 {[%clk 0:15:07.4]} 3. Bd3 {[%clk 0:14:59.5]} 3... d4 {[%clk 0:15:06.1]}
4. Nce2 {[%clk 0:14:57.9]} 4... e5 {[%clk 0:15:10.1]} 5. Nf3 {[%clk 0:14:57.6]}
5... Qd6 {[%clk 0:14:53.5]} 6. O-O {[%clk 0:14:40.6]} 6... Bg4 {[%clk
0:14:57.3]} 7. Ng3 {[%clk 0:14:25.1]} 7... Be7 {[%clk 0:14:52.4]} 8. Nf5 {[%clk
0:14:20.9]} 8... Bxf5 {[%clk 0:14:56.3]} 9. exf5 {[%clk 0:14:23.8]} 9... Nf6
{[%clk 0:14:58.3]} 10. h3 {[%clk 0:14:16.4]} 10... e4 {[%clk 0:15:02.1]} 11. Qe2
{[%clk 0:13:39.7]} 11... exf3 {[%clk 0:14:55.5]} 12. Qxf3 {[%clk 0:13:43.4]}
12... O-O {[%clk 0:14:59]} 13. c3 {[%clk 0:13:40.9]} 13... Nbd7 {[%clk
0:14:59.3]} 14. c4 {[%clk 0:13:38]} 14... Ne5 {[%clk 0:14:51]} 15. Qe2 {[%clk
0:13:24.8]} 15... Nxd3 {[%clk 0:14:39.5]} 16. Qxd3 {[%clk 0:13:26.3]} 16... c5
{[%clk 0:14:40.4]} 17. Qf3 {[%clk 0:13:22.2]} 17... Bd8 {[%clk 0:14:28.7]} 18.
Qxb7 {[%clk 0:13:17.1]} 18... Bc7 {[%clk 0:14:32.9]} 19. g3 {[%clk 0:13:14.1]}
19... Ne4 {[%clk 0:14:28.9]} 20. Qxe4 {[%clk 0:13:08.8]} 20... Rfe8 {[%clk
0:14:31.6]} 21. Qg2 {[%clk 0:13:10.4]} 21... d3 {[%clk 0:14:34]} 22. b3 {[%clk
0:12:53.1]} 22... Rad8 {[%clk 0:14:25.7]} 23. Bb2 {[%clk 0:12:54.3]} 23... Re2
{[%clk 0:14:28.3]} 24. Rad1 {[%clk 0:12:56]} 24... Rde8 {[%clk 0:14:31.2]} 25.
Bc3 {[%clk 0:12:55.4]} 25... Qh6 {[%clk 0:14:15.2]} 26. a3 {[%clk 0:12:34]}
26... Qg5 {[%clk 0:14:13.5]} 27. b4 {[%clk 0:12:32.9]} 27... cxb4 {[%clk
0:14:12.4]} 28. axb4 {[%clk 0:12:32.1]} 28... Qxf5 {[%clk 0:14:16.5]} 29. b5
{[%clk 0:12:24.4]} 29... Bb6 {[%clk 0:14:13.9]} 30. h4 {[%clk 0:12:18.1]} 30...
Qc5 {[%clk 0:13:57.3]} 31. Qf3 {[%clk 0:11:51.9]} 31... Qxc4 {[%clk 0:13:53.8]}
32. Rfe1 {[%clk 0:11:22.2]} 32... Rxe1+ {[%clk 0:13:56.2]} 33. Rxe1 {[%clk
0:11:22.7]} 33... Rxe1+ {[%clk 0:14:01.1]} 34. Kg2 {[%clk 0:11:24.9]} 34... Qe4
{[%clk 0:14:05.8]} 35. g4 {[%clk 0:11:11.5]} 35... Rg1+ {[%clk 0:14:06.9]} 36.
Kxg1 {[%clk 0:11:12]} 36... Qxf3 {[%clk 0:14:07.8]} 0-1

[Event "Live Chess"]
[Site "Chess.com"]
[Date "2023.09.16"]
[Round "-"]
[White "AnthonyGabriel1"]
[Black "daniel-drummond"]
[Result "1-0"]
[WhiteElo "2187"]
[BlackElo "1542"]
[TimeControl "900+5"]
[EndTime "6:26:15 PDT"]
[Termination "AnthonyGabriel1 venceu por desistência"]

1. e4 {[%clk 0:15:03.9]} 1... e5 {[%clk 0:15:04.4]} 2. Bc4 {[%clk 0:15:06.6]}
2... Nc6 {[%clk 0:15:08]} 3. Nc3 {[%clk 0:15:10.8]} 3... Nf6 {[%clk 0:15:11.7]}
4. Nf3 {[%clk 0:15:14.3]} 4... Be7 {[%clk 0:15:14.6]} 5. d4 {[%clk 0:15:17.1]}
5... exd4 {[%clk 0:15:09.2]} 6. Nxd4 {[%clk 0:15:22]} 6... O-O {[%clk
0:15:08.7]} 7. O-O {[%clk 0:15:23.2]} 7... Bc5 {[%clk 0:15:06.3]} 8. Nb3 {[%clk
0:15:24.8]} 8... Bb6 {[%clk 0:15:05.7]} 9. Bg5 {[%clk 0:15:28.9]} 9... h6 {[%clk
0:15:07.1]} 10. Bh4 {[%clk 0:15:32.6]} 10... d6 {[%clk 0:15:09.4]} 11. Nd5
{[%clk 0:15:33.3]} 11... g5 {[%clk 0:15:09.6]} 12. Nxf6+ {[%clk 0:15:14.6]}
12... Qxf6 {[%clk 0:15:14.5]} 13. Bg3 {[%clk 0:15:17.5]} 13... Qg6 {[%clk
0:15:03.2]} 14. a4 {[%clk 0:15:07.2]} 14... a5 {[%clk 0:14:58.9]} 15. c3 {[%clk
0:14:31.7]} 15... h5 {[%clk 0:14:57.6]} 16. h3 {[%clk 0:14:02.6]} 16... h4
{[%clk 0:15:00.1]} 17. Bh2 {[%clk 0:14:05.5]} 17... Qxe4 {[%clk 0:14:58.8]} 18.
Bd3 {[%clk 0:14:07]} 18... Qe7 {[%clk 0:14:35.3]} 19. Re1 {[%clk 0:14:04.4]}
19... Qf6 {[%clk 0:14:32.4]} 20. Kh1 {[%clk 0:12:37.7]} 20... Qxf2 {[%clk
0:14:08.6]} 21. Qh5 {[%clk 0:12:35.7]} 21... f5 {[%clk 0:13:45.3]} 22. Qg6+
{[%clk 0:12:30.8]} 22... Kh8 {[%clk 0:13:43.7]} 23. Qh6+ {[%clk 0:12:35.2]}
23... Kg8 {[%clk 0:13:46.7]} 24. Bc4+ {[%clk 0:12:39.6]} 24... Rf7 {[%clk
0:13:44.5]} 25. Qg6+ {[%clk 0:12:42.5]} 25... Kh8 {[%clk 0:13:45.6]} 26. Re8+
{[%clk 0:12:41.7]} 1-0

[Event "Live Chess"]
[Site "Chess.com"]
[Date "2023.09.16"]
[Round "-"]
[White "vitinho_lawliet"]
[Black "Francisco_Ferrari"]
[Result "0-1"]
[WhiteElo "948"]
[BlackElo "2169"]
[TimeControl "900+5"]
[EndTime "6:27:33 PDT"]
[Termination "Francisco_Ferrari venceu por xeque-mate"]

1. e4 {[%clk 0:14:54.9]} 1... e5 {[%clk 0:15:03.1]} 2. Nf3 {[%clk 0:14:58.5]}
2... Nc6 {[%clk 0:15:06]} 3. Bb5 {[%clk 0:15:01.6]} 3... f5 {[%clk 0:15:03.7]}
4. exf5 {[%clk 0:15:02.4]} 4... Nf6 {[%clk 0:15:01.9]} 5. Nc3 {[%clk 0:14:59.3]}
5... Bc5 {[%clk 0:15:00.5]} 6. Nxe5 {[%clk 0:14:58.3]} 6... Bxf2+ {[%clk
0:14:51.8]} 7. Kxf2 {[%clk 0:14:58.5]} 7... Nxe5 {[%clk 0:14:54.7]} 8. Qe1
{[%clk 0:15:01.8]} 8... O-O {[%clk 0:14:56.1]} 9. Qxe5 {[%clk 0:15:04.2]} 9...
Ng4+ {[%clk 0:15:00]} 10. Kg3 {[%clk 0:14:58.8]} 10... Nxe5 {[%clk 0:15:04.9]}
11. Re1 {[%clk 0:15:02.1]} 11... Qg5+ {[%clk 0:15:02]} 12. Kf2 {[%clk
0:15:02.9]} 12... Qxf5+ {[%clk 0:15:03.7]} 13. Kg1 {[%clk 0:15:05.7]} 13... Qf2+
{[%clk 0:15:07.5]} 14. Kh1 {[%clk 0:15:04.3]} 14... Qxe1+ {[%clk 0:15:11.5]} 15.
Bf1 {[%clk 0:15:04.5]} 15... Rxf1# {[%clk 0:15:15.6]} 0-1

[Event "Live Chess"]
[Site "Chess.com"]
[Date "2023.09.16"]
[Round "-"]
[White "Edson_Zarnelli"]
[Black "Thiago1451"]
[Result "1-0"]
[WhiteElo "756"]
[BlackElo "567"]
[TimeControl "900+5"]
[EndTime "6:27:44 PDT"]
[Termination "Edson_Zarnelli venceu por desistência"]

1. e4 {[%clk 0:15:04.1]} 1... c5 {[%clk 0:15:03.9]} 2. c3 {[%clk 0:15:03.3]}
2... Nc6 {[%clk 0:15:05.4]} 3. d4 {[%clk 0:15:06.3]} 3... b6 {[%clk 0:15:05.7]}
4. d5 {[%clk 0:15:07.4]} 4... Ne5 {[%clk 0:15:09.2]} 5. Nf3 {[%clk 0:15:02.5]}
5... Nxf3+ {[%clk 0:15:09.7]} 6. Qxf3 {[%clk 0:15:07.4]} 6... e6 {[%clk
0:15:12.6]} 7. Qd3 {[%clk 0:14:39.9]} 7... exd5 {[%clk 0:15:13.3]} 8. Qxd5
{[%clk 0:14:43.6]} 8... Rb8 {[%clk 0:15:02.5]} 9. Bf4 {[%clk 0:14:41.6]} 9...
Bb7 {[%clk 0:15:05.4]} 10. Qe5+ {[%clk 0:14:39.5]} 10... Be7 {[%clk 0:15:06.9]}
11. Qxb8 {[%clk 0:14:39.1]} 11... Qxb8 {[%clk 0:15:10.2]} 12. Bxb8 {[%clk
0:14:43.8]} 12... Nf6 {[%clk 0:15:14.5]} 13. Nd2 {[%clk 0:14:42.1]} 13... O-O
{[%clk 0:15:17.6]} 14. Bxa7 {[%clk 0:14:45.5]} 14... Nxe4 {[%clk 0:15:12.2]} 15.
Nxe4 {[%clk 0:14:45.8]} 15... Bxe4 {[%clk 0:15:15.8]} 16. Bxb6 {[%clk
0:14:49.9]} 16... Re8 {[%clk 0:15:17.2]} 17. Be2 {[%clk 0:14:42.7]} 17... Bxg2
{[%clk 0:15:10.9]} 18. Rg1 {[%clk 0:14:42.4]} 18... Be4 {[%clk 0:15:05.3]} 19.
f3 {[%clk 0:14:42.1]} 19... Bc2 {[%clk 0:15:00.8]} 20. Rc1 {[%clk 0:14:35.6]}
20... Bh4+ {[%clk 0:14:56.5]} 21. Kd2 {[%clk 0:14:32.8]} 21... Bg6 {[%clk
0:14:59]} 22. Bd3 {[%clk 0:14:24.8]} 22... Bg5+ {[%clk 0:14:58.5]} 23. Kc2
{[%clk 0:14:22.4]} 23... Bxd3+ {[%clk 0:14:59.6]} 24. Kxd3 {[%clk 0:14:21.6]}
24... Re3+ {[%clk 0:14:57.7]} 25. Kc4 {[%clk 0:14:18.1]} 25... Re4+ {[%clk
0:14:55]} 26. fxe4 {[%clk 0:14:20.7]} 26... Bxc1 {[%clk 0:14:59.9]} 27. Rxc1
{[%clk 0:14:23.6]} 1-0

[Event "Live Chess"]
[Site "Chess.com"]
[Date "2023.09.16"]
[Round "-"]
[White "xadrecarloso"]
[Black "Ggavioli"]
[Result "0-1"]
[WhiteElo "937"]
[BlackElo "1560"]
[TimeControl "900+5"]
[EndTime "6:28:15 PDT"]
[Termination "Ggavioli venceu por desistência"]

1. d4 {[%clk 0:15:03.5]} 1... c6 {[%clk 0:15:02.2]} 2. Bf4 {[%clk 0:15:07.2]}
2... d6 {[%clk 0:15:03]} 3. e3 {[%clk 0:15:10.7]} 3... g5 {[%clk 0:15:04.6]} 4.
Bg3 {[%clk 0:15:13.6]} 4... h5 {[%clk 0:15:06.1]} 5. h3 {[%clk 0:15:16.1]} 5...
Nf6 {[%clk 0:15:06.3]} 6. Nf3 {[%clk 0:15:15.2]} 6... g4 {[%clk 0:15:09.7]} 7.
hxg4 {[%clk 0:15:16.4]} 7... Bxg4 {[%clk 0:15:14.6]} 8. Bd3 {[%clk 0:15:11.5]}
8... Qb6 {[%clk 0:15:15.6]} 9. b3 {[%clk 0:14:53]} 9... Nbd7 {[%clk 0:15:12.2]}
10. Nbd2 {[%clk 0:14:46]} 10... e5 {[%clk 0:15:11]} 11. c3 {[%clk 0:14:21.1]}
11... e4 {[%clk 0:15:09.6]} 12. Nxe4 {[%clk 0:14:21.7]} 12... Nxe4 {[%clk
0:15:11.2]} 13. Bxe4 {[%clk 0:14:25.3]} 13... Nf6 {[%clk 0:14:53.5]} 14. Qd3
{[%clk 0:13:59.2]} 14... Be7 {[%clk 0:13:24]} 15. O-O {[%clk 0:13:24.9]} 15...
O-O-O {[%clk 0:13:08]} 16. Ng5 {[%clk 0:13:13.3]} 16... Nxe4 {[%clk 0:12:37.4]}
17. Qxe4 {[%clk 0:13:05.6]} 17... Bxg5 {[%clk 0:12:38.9]} 18. Bf4 {[%clk
0:12:16.9]} 18... Bxf4 {[%clk 0:12:12.8]} 19. Qxf4 {[%clk 0:12:17]} 19... Qc7
{[%clk 0:12:16.2]} 20. e4 {[%clk 0:11:27.8]} 20... d5 {[%clk 0:11:43.1]} 21. f3
{[%clk 0:11:20.1]} 21... Qxf4 {[%clk 0:11:42.9]} 0-1

[Event "Live Chess"]
[Site "Chess.com"]
[Date "2023.09.16"]
[Round "-"]
[White "fernanndodod"]
[Black "zezemito921"]
[Result "1-0"]
[WhiteElo "1980"]
[BlackElo "909"]
[TimeControl "900+5"]
[EndTime "6:28:46 PDT"]
[Termination "fernanndodod venceu por desistência"]

1. e4 {[%clk 0:15:03.5]} 1... e5 {[%clk 0:15:01.2]} 2. Nf3 {[%clk 0:15:06.7]}
2... Nc6 {[%clk 0:14:59.5]} 3. Bb5 {[%clk 0:15:09.9]} 3... d6 {[%clk 0:15:02.2]}
4. d4 {[%clk 0:15:12.6]} 4... f6 {[%clk 0:15:03.2]} 5. d5 {[%clk 0:15:13.5]}
5... a6 {[%clk 0:14:53.8]} 6. Bxc6+ {[%clk 0:15:14]} 6... bxc6 {[%clk
0:14:57.2]} 7. dxc6 {[%clk 0:15:18.9]} 7... Ne7 {[%clk 0:14:56.5]} 8. Be3 {[%clk
0:15:15.3]} 8... Nxc6 {[%clk 0:14:58.7]} 9. c3 {[%clk 0:15:17.7]} 9... Be7
{[%clk 0:15:00.2]} 10. Qb3 {[%clk 0:15:17.2]} 10... Rb8 {[%clk 0:14:53.1]} 11.
Qc2 {[%clk 0:15:20.2]} 11... O-O {[%clk 0:14:54.9]} 12. Nbd2 {[%clk 0:15:23.4]}
12... Bg4 {[%clk 0:14:50.4]} 13. h3 {[%clk 0:15:23.2]} 13... Bxf3 {[%clk
0:14:54.4]} 14. Nxf3 {[%clk 0:15:28.1]} 14... d5 {[%clk 0:14:43.2]} 15. O-O-O
{[%clk 0:15:27.5]} 15... Rb5 {[%clk 0:14:07.5]} 16. exd5 {[%clk 0:14:56.8]}
16... Rxd5 {[%clk 0:14:07.5]} 17. Qb3 {[%clk 0:15:00.4]} 17... Nd4 {[%clk
0:11:53.7]} 18. Bxd4 {[%clk 0:14:48.2]} 18... exd4 {[%clk 0:11:55]} 19. Rxd4
{[%clk 0:14:50.6]} 19... Bc5 {[%clk 0:11:33.3]} 20. Rxd5 {[%clk 0:14:50.8]}
20... Qxd5 {[%clk 0:11:14.8]} 21. Qxd5+ {[%clk 0:14:52.8]} 21... Rf7 {[%clk
0:11:14.8]} 22. Qxc5 {[%clk 0:14:55.3]} 1-0